[Event "Romanian Team Blitz Open 2022"]
[Site "Sebes"]
[Date "2022.12.04"]
[Round "2.21"]
[White "Dragomirescu, Robin-Alexandru"]
[Black "Stanca, Adrian"]
[Result "1-0"]
[ECO "A01"]
[WhiteElo "2337"]
[BlackElo "2182"]
[Annotator "TA"]
[PlyCount "135"]
[EventDate "2022.12.04"]
[EventType "blitz"]
[EventCountry "ROU"]
[SourceTitle "playchess.com"]
[Source "ChessBase"]
[SourceQuality "1"]
[TimeControl "180+2"]

{[%evp 9,135,-22,-22,-19,-21,-54,0,-23,0,-34,-25,-32,-20,-23,0,0,0,0,0,-40,0,0,0,-11,14,26,27,25,24,7,23,23,25,24,40,24,45,43,38,39,63,27,50,10,21,21,41,0,22,5,35,37,100,105,89,58,45,0,57,42,33,-383,66,69,69,69,89,92,94,53,54,51,242,242,242,242,242,242,242,242,243,242,242,121,121,133,116,108,242,242,243,102,149,149,242,242,243,242,242,242,242,242,242,242,242,242,242,0,242,242,242,242,242,242,242,242,242,242,242,242,242,242,242,242,242,242,12837,12838]} 1. b3 {[%emt 0:00:02]} g6 {[%emt 0:00:00]} 2. Bb2 {[%emt 0:00:02]} Nf6 {[%emt 0:00:01]} 3. Bxf6 {[%emt 0:00:05]} exf6 {[%emt 0:00:04]} 4. c4 {[%emt 0:00:01]} d5 {[%emt 0:00:08]} 5. cxd5 {[%emt 0:00:02]} Qxd5 {[%emt 0:00:01]} 6. Nc3 {[%emt 0:00:01] A01: Nimzowitsch-Larsen Opening.} Qa5 {[%emt 0:00:12]} 7. g3 {[%emt 0:00:03][%cal Oa2a3]} Bg7 {[%emt 0:00:03]} (7... Bb4 $15 8. Na4 Ba3) 8. Bg2 {[%emt 0:00:10] The position is equal.} c6 {[%emt 0:00:02]} 9. Nf3 {[%emt 0:00:02]} O-O {[%emt 0:00:03]} 10. O-O {[%emt 0:00:03]} f5 {[%emt 0:00:11]} 11. Qc2 {[%emt 0:00:03]} Be6 {[%emt 0:00:19] [#]} 12. a3 $146 {[%emt 0:00:08]} ({Predecessor:} 12. d4 Nd7 13. e3 Nf6 14. a3 Nd5 15. b4 Qd8 16. Na4 Qe7 17. Nc5 Bc8 18. Rab1 {1-0 (37) Sadhwani,R (2555)-Eynullayev,A (2227) Chess.com INT 2021}) 12... Nd7 {[%emt 0:00:22]} 13. b4 {[%emt 0:00:02]} Qd8 {[%emt 0:00:08]} 14. Rac1 {[%emt 0:00:08]} Rc8 {[%emt 0:00:10]} 15. Na4 {[%emt 0:00:14]} Bd5 {[%emt 0:00:14]} 16. Nc3 {[%emt 0:00:16]} Nb6 {[%emt 0:00:07]} 17. Nxd5 {[%emt 0:00:03]} Nxd5 {[%emt 0:00:02]} 18. Qb3 {[%emt 0:00:09]} f4 {[%emt 0:00:02]} 19. e4 {[%emt 0:00:20]} fxe3 {[%emt 0:00:12]} 20. dxe3 {[%emt 0:00:01]} Qe7 {[%emt 0:00:08]} 21. b5 {[%emt 0:00:08]} Rfd8 {[%emt 0:00:28]} 22. bxc6 {[%emt 0:00:05]} Rxc6 {[%emt 0:00:01]} 23. Rxc6 {[%emt 0:00:01]} bxc6 {[%emt 0:00:01]} 24. Rc1 {[%emt 0:00:06] Against Nc3} Qd7 {[%emt 0:00:18][%cal Od5c3]} 25. Qc4 {[%emt 0:00:11]} Nb6 {[%emt 0:00:06]} 26. Qc2 {[%emt 0:00:49][%cal Oa3a4]} c5 {[%emt 0:00:06]} 27. Bf1 $1 {[%emt 0:00:18] Against c4} (27. Qxc5 $2 Rc8 $19) 27... Qd5 {[%emt 0:00:09]} 28. e4 {[%emt 0:00:07]} Qe6 {[%emt 0:00:05][%cal Oc5c4]} 29. Kg2 {[%emt 0:00:06]} Bf8 {[%emt 0:00:04]} 30. a4 {[%emt 0:00:01][%cal Ba3a4,Ba4a5][%mdl 32]} Re8 {[%emt 0:00:08]} (30... a5 $14) 31. a5 $16 {[%emt 0:00:02]} Nd7 {[%emt 0:00:01]} 32. Re1 {[%emt 0:00:05]} Ne5 {[%emt 0:00:01]} 33. Nd2 {[%emt 0:00:04]} Nc6 {[%emt 0:00:03]} (33... Rd8 $11) 34. Bc4 $14 {[%emt 0:00:03]} Qf6 {[%emt 0:00:02][%cal Oe8b8]} 35. Nf3 $2 {[%emt 0:00:03][%mdl 8192] [#]} (35. Rb1 $14) 35... Nd4 $2 {[%emt 0:00:02]} (35... Qxf3+ $3 $19 {[%mdl 512]} 36. Kxf3 Nd4+ 37. Kg2 Nxc2) 36. Nxd4 {[%emt 0:00:02]} Qxd4 {[%emt 0:00:01]} 37. Bd5 {[%emt 0:00:03]} Kg7 {[%emt 0:00:02]} 38. Rb1 {[%emt 0:00:02] Inhibits Rb8.} c4 {[%emt 0:00:03]} 39. Rb7 {[%emt 0:00:04]} (39. Qxc4 $6 Qxc4 40. Bxc4 Rxe4 $11) (39. Bxc4 $6 Qxe4+ 40. Qxe4 Rxe4 $11) 39... Re7 {[%emt 0:00:02]} 40. Rb4 {[%emt 0:00:03]} (40. Qxc4 $2 {is the wrong capture.} Qxc4 41. Rxe7 {[#]} Qxd5 $3 {[%mdl 512]} 42. exd5 Bxe7 $19) (40. Rxe7 {simplifies} Bxe7 41. Bxc4 Bd8 42. a6) 40... Rxe4 $2 {[%emt 0:00:03]} 41. Rxc4 $18 {[%emt 0:00:02]} Qxd5 {[%emt 0:00:03]} 42. Qxe4 {[%emt 0:00:01]} Qxa5 $14 {[%emt 0:00:04][%mdl 4096] Endgame KQR-KQB} 43. Qd4+ {[%emt 0:00:01]} Kg8 {[%emt 0:00:02]} 44. Rc8 {[%emt 0:00:02] Qd6 would kill now.} Qa3 {[%emt 0:00:02] Prevents Qd6.} 45. Qd7 {[%emt 0:00:01]} Qb4 {[%emt 0:00:03]} 46. Rc7 {[%emt 0:00:02]} ({White should play} 46. Qd5 $18) 46... Qe4+ $16 {[%emt 0:00:01]} 47. Kh3 {[%emt 0:00:03]} Qf3 {[%emt 0:00:03]} 48. Qd4 {[%emt 0:00:04]} ({Don't take} 48. Rxa7 Qxf2 49. Ra1 h5) 48... Qh5+ {[%emt 0:00:01]} (48... a5 $16 {might work better.} 49. Ra7 Qh1) 49. Kg2 $18 {[%emt 0:00:01]} Qf5 {[%emt 0:00:02]} 50. Qf4 {[%emt 0:00:02]} (50. Rxa7 $18 {and White stays clearly on top. Threatens to win with Rd7.} Qc5 51. Qxc5 Bxc5 52. Rc7) 50... Qd5+ {[%emt 0:00:01]} ({Black should try} 50... Qxf4 51. gxf4 a5) 51. Qf3 $16 {[%emt 0:00:00] White is more active.} Qe6 {[%emt 0:00:01]} (51... Qxf3+ $16 {was called for.} 52. Kxf3 a5) 52. Rxa7 $18 {[%emt 0:00:01]} Bd6 {[%emt 0:00:05]} 53. Ra6 {[%emt 0:00:02]} Qe5 {[%emt 0:00:02]} 54. h4 {[%emt 0:00:01]} h5 {[%emt 0:00:02]} 55. Ra8+ {[%emt 0:00:02]} Kg7 {[%emt 0:00:01]} 56. Ra7 {[%emt 0:00:01]} Qe6 {[%emt 0:00:01]} 57. Qc3+ {[%emt 0:00:01]} Be5 {[%emt 0:00:01]} 58. Qf3 {[%emt 0:00:02]} (58. Qe3 $18) 58... Bf6 $2 {[%emt 0:00:01]} (58... Bd6 $1 $11 {and Black stays safe.} 59. Qc6 Qe5) 59. Rb7 {[%emt 0:00:02]} Qc4 {[%emt 0:00:01]} 60. Rb6 {[%emt 0:00:01]} Qd4 {[%emt 0:00:01]} 61. Rc6 {[%emt 0:00:02]} Qe5 {[%emt 0:00:01]} 62. Rc4 {[%emt 0:00:05]} Qd6 {[%emt 0:00:02]} 63. Rc8 {[%emt 0:00:01]} Qd7 {[%emt 0:00:02]} 64. Ra8 {[%emt 0:00:02]} Qc7 {[%emt 0:00:02]} 65. Qd5 {[%emt 0:00:02]} Qe7 {[%emt 0:00:03]} 66. Qc6 {[%emt 0:00:04]} Bd4 {[%emt 0:00:03]} 67. Qc8 {[%emt 0:00:03][%csl Ga8][%cal Rc8h8]} Kf6 $2 {[%emt 0:00:04]} (67... Kh6 68. Qf8+ Qxf8 69. Rxf8 Kg7) 68. Qh8+ {[%emt 0:00:09] Weighted Error Value: White=0.30/Black=0.33} 1-0

[Event "Romanian Team Blitz Open 2022"]
[Site "Sebes"]
[Date "2022.12.04"]
[Round "2.22"]
[White "Coicev, Matei-Andrei"]
[Black "Ionescu, Mihai"]
[Result "1/2-1/2"]
[ECO "B10"]
[WhiteElo "2009"]
[BlackElo "2243"]
[Annotator "TA"]
[PlyCount "49"]
[EventDate "2022.12.04"]
[EventType "blitz"]
[EventCountry "ROU"]
[SourceTitle "playchess.com"]
[Source "ChessBase"]
[SourceQuality "1"]
[TimeControl "180+2"]

{[%evp 9,49,-20,-18,-42,-41,-47,-12,-12,38,37,67,80,63,64,39,64,63,56,53,37,28,-14,0,0,0,0,5,6,7,7,6,8,6,6,7,0,0,0,0,0,0,0]} 1. e4 {[%emt 0:00:01]} c6 {[%emt 0:00:01]} 2. Ne2 {[%emt 0:00:02]} d5 {[%emt 0:00:01]} 3. e5 {[%emt 0:00:01]} Bf5 {[%emt 0:00:03]} 4. Ng3 {[%emt 0:00:01]} Bg6 {[%emt 0:00:00]} 5. h4 {[%emt 0:00:01]} h5 {[%emt 0:00:02]} 6. e6 {[%emt 0:00:01] B10: Caro-Kann: 2 d3 and 2 c4.} fxe6 {[%emt 0:00:09]} 7. d4 {[%emt 0:00:02][%cal Bd2d4,Bd4e5][%mdl 32]} e5 {[%emt 0:00:01]} 8. dxe5 {[%emt 0:00:18]} e6 {[%emt 0:00:02]} ({Better is} 8... Nd7 $11) 9. Bd3 $14 {[%emt 0:00:04]} Bxd3 {[%emt 0:00:05]} 10. Qxd3 {[%emt 0:00:01][%cal Og3h5] [#]} Ne7 $146 {[%emt 0:00:06]} ({Predecessor:} 10... Qc7 11. Qg6+ Qf7 12. Qxf7+ Kxf7 13. Nd2 Nd7 14. Nf3 Be7 15. Bg5 g6 16. Ne2 Nh6 {0-1 (34) Yang,K (2481)-Bluebaum,M (2642) Chess.com INT 2022}) 11. Bg5 {[%emt 0:00:08] White is much more active.} Nd7 {[%emt 0:00:03]} 12. Nd2 $1 {[%emt 0:00:37]} Nxe5 {[%emt 0:00:09]} 13. Qe3 {[%emt 0:00:01]} Nf7 {[%emt 0:00:08]} 14. Qxe6 {[%emt 0:00:03]} Qd7 {[%emt 0:00:04]} 15. Qxd7+ {[%emt 0:00:12]} Kxd7 {[%emt 0:00:01] The position is equal.} 16. Be3 {[%emt 0:00:20]} g6 {[%emt 0:00:07]} 17. O-O-O {[%emt 0:00:04]} Bh6 {[%emt 0:00:08]} 18. Bxh6 {[%emt 0:00:06]} Nxh6 {[%emt 0:00:02]} 19. Rhe1 {[%emt 0:00:25]} Nhf5 {[%emt 0:00:04]} 20. Nxf5 {[%emt 0:00:02]} Nxf5 {[%emt 0:00:01]} 21. g3 {[%emt 0:00:03]} Rhe8 {[%emt 0:00:04]} 22. Ne4 {[%emt 0:00:29] [#] Strongly threatening Nf6+.} Kc7 {[%emt 0:00:26]} 23. Ng5 {[%emt 0:00:02]} Nd6 {[%emt 0:00:17]} 24. Ne6+ {[%emt 0:00:07]} Kd7 {[%emt 0:00:10]} 25. Nf4 {[%emt 0:00:03] Weighted Error Value: White=0.06 (flawless) /Black=0.08 (flawless)} 1/2-1/2

[Event "Romanian Team Blitz Open 2022"]
[Site "Sebes"]
[Date "2022.12.04"]
[Round "2.23"]
[White "Dragomirescu, Calin"]
[Black "Danila, Tudor-Gabriel"]
[Result "1-0"]
[ECO "E18"]
[WhiteElo "1971"]
[BlackElo "1939"]
[Annotator "TA"]
[PlyCount "55"]
[EventDate "2022.12.04"]
[EventType "blitz"]
[EventCountry "ROU"]
[SourceTitle "playchess.com"]
[Source "ChessBase"]
[SourceQuality "1"]
[TimeControl "180+2"]

{[%evp 17,55,12,72,38,38,41,83,65,63,69,64,53,72,33,33,0,0,-2,0,-125,14,13,14,10,36,10,52,27,281,100,579,597,29992,29993,29993,29990,29996,29997,29997,29998]} 1. d4 {[%emt 0:00:01]} Nf6 {[%emt 0:00:00]} 2. Nf3 {[%emt 0:00:00]} e6 {[%emt 0:00:01]} 3. c4 {[%emt 0:00:01]} d5 {[%emt 0:00:08]} 4. g3 {[%emt 0:00:01]} b6 {[%emt 0:00:01]} 5. cxd5 {[%emt 0:00:01]} exd5 6. Bg2 Bb7 {[%emt 0:00:03]} 7. Nc3 {[%emt 0:00:01]} Be7 {[%emt 0:00:08]} 8. O-O {[%emt 0:00:02]} O-O {[%emt 0:00:02]} 9. Bf4 {[%emt 0:00:00]} a6 {[%emt 0:00:02]} (9... Nh5 $11) 10. Rc1 {[%emt 0:00:01] E18: Queen's Indian: Old Main Line (4 g3 Bb7 5 Bg2 Be7 6 0-0 0-0 7 Nc3).} Nbd7 {[%emt 0:00:36]} 11. Ne5 {[%emt 0:00:01]} Rc8 {[%emt 0:00:01]} 12. a3 {[%emt 0:00:08] White is much more active. The black rooks are badly placed. White is better.} c5 {[%emt 0:00:35]} 13. dxc5 {[%emt 0:00:07]} Nxc5 {[%emt 0:00:01] [#]} 14. b4 $146 {[%emt 0:00:21] Inhibits d4.} ({Predecessor:} 14. Be3 Qd6 15. Nf3 Ne6 16. Nd4 g6 17. Qb3 b5 18. Rcd1 Rfd8 19. Nxe6 Qxe6 20. Bd4 {½-½ (60) Akopian,V (2605)-Gruenfeld,Y (2545) New York 1994}) 14... Nce4 {[%emt 0:00:01]} 15. Nxe4 {[%emt 0:00:02]} dxe4 {[%emt 0:00:03]} 16. Rxc8 {[%emt 0:00:06]} Qxc8 {[%emt 0:00:09]} 17. Qc1 {[%emt 0:00:05]} Qe6 {[%emt 0:00:40][%cal Og7g5] [#] aiming for ...g5!} 18. Qb2 {[%emt 0:00:17] Against g5} (18. Qc7 $11 Ba8 19. Rc1) 18... Nd7 {[%emt 0:00:15]} (18... Nd5 $17 {Hoping for ...g5.} 19. Bxe4 Bf6) 19. Nxd7 $11 {[%emt 0:00:03]} Qxd7 {[%emt 0:00:01]} 20. Rc1 {[%emt 0:00:09]} Bf6 {[%emt 0:00:09]} 21. Qd2 {[%emt 0:00:10]} Qa4 {[%emt 0:00:10]} (21... Qxd2 {simplifies} 22. Bxd2 Be5 23. f4 exf3 24. Bxf3 Bxf3 25. exf3 f5) 22. Qe3 {[%emt 0:00:15][%csl LRb6,LRe4]} g6 $2 {[%emt 0:00:09][%mdl 8192] [#]} (22... Bb2 $11 {and Black has nothing to worry.} 23. Rf1 Qc6) 23. h4 $2 {[%emt 0:00:01]} (23. Bxe4 Bxe4 24. Qxe4 Qxa3 $16) (23. Qxb6 $18 Rc8 24. Qxb7 Rxc1+ 25. Bxc1 Qd1+ 26. Bf1 Qxc1 27. Qxa6) 23... h5 $2 {[%emt 0:00:04][%mdl 8192]} (23... Bb2 $16 {is a better chance.}) 24. Qxb6 $18 {[%emt 0:00:09]} ({Weaker is} 24. Bxe4 Bxe4 25. Qxe4 Qxa3 $16) 24... Ba8 {[%emt 0:00:08]} 25. Qxf6 {[%emt 0:00:03] White mates.} Qxa3 {[%emt 0:00:04]} 26. Rf1 {[%emt 0:00:08]} Kh7 {[%emt 0:00:07]} 27. Be5 {[%emt 0:00:04][%csl Ge5][%cal Rf6g7]} Rg8 {[%emt 0:00:04]} 28. Qxf7+ {[%emt 0:00:03] Weighted Error Value: White=0.34/Black=1.12} 1-0

[Event "Romanian Team Blitz Open 2022"]
[Site "Sebes"]
[Date "2022.12.04"]
[Round "2.24"]
[White "Mainescu, Andrei-Cristian"]
[Black "Santimbrean, Mihnea-Nicolae"]
[Result "1-0"]
[ECO "C10"]
[WhiteElo "1860"]
[BlackElo "1491"]
[Annotator "NA RC COMBH"]
[PlyCount "53"]
[EventDate "2022.12.04"]
[EventType "blitz"]
[EventCountry "ROU"]
[SourceTitle "playchess.com"]
[Source "ChessBase"]
[SourceQuality "1"]
[TimeControl "180+2"]

1. e4 {[%emt 0:00:01]} e6 {[%emt 0:00:01]} 2. d4 {[%emt 0:00:01]} d5 {[%emt 0:00:00]} 3. Nd2 {[%emt 0:00:01]} Nf6 {[%emt 0:00:01]} 4. Bd3 {[%emt 0:00:01]} dxe4 {[%emt 0:00:01]} 5. Nxe4 {[%emt 0:00:01]} Bd7 {[%emt 0:00:06]} 6. Nf3 {[%emt 0:00:13]} Nxe4 {[%emt 0:00:02]} 7. Bxe4 {[%emt 0:00:02]} Bc6 {[%emt 0:00:02]} 8. Bd3 {[%emt 0:00:07]} h6 {[%emt 0:00:04]} 9. O-O {[%emt 0:00:06]} Bd6 {[%emt 0:00:06]} 10. Ne5 {[%emt 0:00:42]} Qh4 {[%emt 0:00:33]} 11. f4 {[%emt 0:00:46]} Bxe5 {[%emt 0:00:21]} 12. dxe5 {[%emt 0:00:06]} Nd7 {[%emt 0:00:17]} 13. Be3 {[%emt 0:00:08]} Nb6 {[%emt 0:00:24]} 14. Bf2 {[%emt 0:00:35]} Qe7 {[%emt 0:00:07]} 15. c4 {[%emt 0:00:03]} Na4 {[%emt 0:00:12]} 16. Qe2 {[%emt 0:00:07]} Nc5 {[%emt 0:00:06]} 17. Bc2 {[%emt 0:00:01]} Na4 {[%emt 0:00:26]} 18. b3 {[%emt 0:00:13]} Nb6 {[%emt 0:00:06]} 19. a4 {[%emt 0:00:09]} Nd7 {[%emt 0:00:24]} 20. Rab1 {[%emt 0:00:07]} b6 {[%emt 0:00:04]} 21. Qg4 {[%emt 0:00:07]} O-O {[%emt 0:00:09]} 22. b4 {[%emt 0:00:01]} Bb7 {[%emt 0:00:02]} 23. Bh4 {[%emt 0:00:03]} Qe8 {[%emt 0:00:04]} 24. Rbe1 {[%emt 0:00:01]} c5 {[%emt 0:00:03]} 25. f5 {[%emt 0:00:00]} cxb4 {[%emt 0:00:06]} 26. f6 {[%emt 0:00:01]} g6 {[%emt 0:00:07]} 27. Qd1 {[%emt 0:00:13]} 1-0

[Event "Romanian Team Blitz Open 2022"]
[Site "Sebes"]
[Date "2022.12.04"]
[Round "2.25"]
[White "Saioc, David"]
[Black "Nastase, Robert-Paul"]
[Result "0-1"]
[ECO "A04"]
[WhiteElo "2026"]
[BlackElo "2229"]
[Annotator "TA"]
[PlyCount "116"]
[EventDate "2022.12.04"]
[EventType "blitz"]
[EventCountry "ROU"]
[SourceTitle "playchess.com"]
[Source "ChessBase"]
[SourceQuality "1"]
[TimeControl "180+2"]

{[%evp 9,116,40,50,43,35,27,22,16,20,-26,-18,-31,-18,-33,-25,-24,-27,-25,-24,-27,70,70,71,83,77,-13,-13,-13,-13,-9,0,0,0,0,0,0,0,0,0,-79,-78,-169,-92,-121,-93,-112,-60,-83,-83,-83,-79,-101,-100,-99,-83,-83,0,-109,-55,-137,-64,-66,0,-137,-137,-143,-141,-127,-131,-126,-106,-238,-230,-308,0,-240,-223,-360,-155,-386,-50,-57,0,0,0,0,0,0,0,0,0,0,0,-756,-864,-12843,-1226,-1342,-1067,-864,0,-1277,-1208,-908,-883,-12844,-12827,-12844,-12837]} 1. Nf3 {[%emt 0:00:02]} f5 {[%emt 0:00:05]} 2. d3 {[%emt 0:00:02]} d6 {[%emt 0:00:02]} 3. e4 {[%emt 0:00:02]} e5 {[%emt 0:00:01]} 4. g3 {[%emt 0:00:05]} c5 {[%emt 0:00:06]} 5. Bg2 {[%emt 0:00:02]} Nf6 {[%emt 0:00:02]} 6. Nc3 {[%emt 0:00:05] A04: Unusual lines after 1 Nf3 and King's Indian Attack.} Nc6 {[%emt 0:00:01]} 7. O-O {[%emt 0:00:03]} Be7 {[%emt 0:00:02]} 8. Re1 {[%emt 0:00:05] The position is equal.} O-O {[%emt 0:00:02]} 9. Bg5 {[%emt 0:00:14]} (9. Nh4 {feels stronger.}) 9... h6 $11 {[%emt 0:00:13]} 10. Bxf6 {[%emt 0:00:02]} Bxf6 {[%emt 0:00:02]} 11. Nd5 {[%emt 0:00:03] [#]} Be6 $146 {[%emt 0:00:08]} ({Predecessor:} 11... g5 12. c3 Bg7 13. Qb3 Rf7 14. Rf1 Be6 15. exf5 Bxf5 16. Qc2 c4 17. Ne1 Qa5 {½-½ (28) Schmalhorst,S (1859)-Kolker,V (2100) Heusenstamm 2009}) 12. Nxf6+ {[%emt 0:00:16]} Qxf6 {[%emt 0:00:02]} 13. exf5 $1 {[%emt 0:00:16]} Bxf5 {[%emt 0:00:01]} 14. Nd2 {[%emt 0:00:48]} (14. Re3 {simplifies} Bg4 15. Qf1 Nb4 16. Ne1) 14... Bg4 {[%emt 0:00:58]} 15. Qxg4 $14 {[%emt 0:00:41]} Qxf2+ {[%emt 0:00:01]} 16. Kh1 {[%emt 0:00:00]} Qxd2 {[%emt 0:00:03]} 17. Bxc6 {[%emt 0:00:06]} (17. Qe6+ $16 Kh8 18. Rf1) 17... bxc6 $11 {[%emt 0:00:05]} 18. Re2 {[%emt 0:00:01] Inhibits Rf2.} Qb4 $36 {[%emt 0:00:15][%mdl 2048] Black is more active.} 19. Qe6+ {[%emt 0:00:01]} Kh8 {[%emt 0:00:07]} (19... Kh7 {simplifies} 20. Qxd6 Qxb2 21. Qxe5 Qxe5 22. Rxe5 Rf2) 20. Qxd6 {[%emt 0:00:02]} Qxb2 {[%emt 0:00:04]} 21. Qxe5 {[%emt 0:00:03]} Rab8 {[%emt 0:00:29]} 22. Rae1 {[%emt 0:00:23]} c4 {[%emt 0:00:35]} 23. dxc4 {[%emt 0:00:21]} Qxa2 {[%emt 0:00:02]} 24. Qd6 {[%emt 0:00:03]} (24. Qc3 $11) 24... Qxc4 $17 {[%emt 0:00:03]} 25. Qd2 {[%emt 0:00:03] Inhibits a5.} (25. Re6 $17) 25... Rfd8 {[%emt 0:00:04]} (25... Rbd8 $1 $19 {[%cal Rd8d2]} 26. Qe3 a5) 26. Qe3 {[%emt 0:00:01]} Qd5+ {[%emt 0:00:03]} 27. Kg1 {[%emt 0:00:01]} Rb7 {[%emt 0:00:06]} (27... a5 $17 28. Qc3 Qd4+ 29. Qxd4 Rxd4) 28. Qf2 {[%emt 0:00:02]} Rf7 {[%emt 0:00:05] Black is more active.} 29. Re8+ {[%emt 0:00:03]} Rxe8 {[%emt 0:00:01]} 30. Rxe8+ {[%emt 0:00:01][%mdl 4096] Endgame KQR-KQR} Kh7 {[%emt 0:00:01]} 31. Qe2 {[%emt 0:00:00]} Qd4+ {[%emt 0:00:04]} 32. Kg2 {[%emt 0:00:01]} Qd5+ {[%emt 0:00:02]} 33. Kg1 $1 {[%emt 0:00:01]} Rb7 {[%emt 0:00:05]} ({Black should try} 33... Rd7 $17 {aiming for ...Qd1+.} 34. c4 Qd1+ 35. Qe1 Rd4 36. Qxd1 Rxd1+ 37. Kg2 Rd4) 34. Re5 {[%emt 0:00:05]} (34. Qe4+ $15 Qxe4 35. Rxe4) 34... Qd4+ {[%emt 0:00:03]} (34... Rb1+ $17 35. Kf2 Rh1 $1) 35. Kg2 $15 {[%emt 0:00:00]} Rf7 {[%emt 0:00:02]} (35... Rb2 $15) 36. Re6 {[%emt 0:00:05] [#]} (36. Re8 $11 {remains equal.}) 36... Rf2+ $3 $17 {[%emt 0:00:06][%mdl 512]} 37. Qxf2 {[%emt 0:00:03] Threatening mate with Qf5+.} Qd5+ {[%emt 0:00:01]} 38. Qf3 {[%emt 0:00:02]} Qxe6 {[%emt 0:00:02] KQ-KQ} 39. Qd3+ {[%emt 0:00:01]} Qg6 {[%emt 0:00:01]} 40. Qd2 {[%emt 0:00:04]} (40. Qc4 $17) 40... Qe4+ $19 {[%emt 0:00:01]} 41. Kf2 {[%emt 0:00:00]} Qd5 $2 {[%emt 0:00:01]} (41... Qf5+ $19 42. Ke2 Qh5+ 43. Kf1 Qd5) 42. Qe3 $2 {[%emt 0:00:03]} (42. Qxd5 $11 cxd5 43. Ke3) 42... a5 {[%emt 0:00:02] And now ...Qf5+ would win.} 43. Qc3 {[%emt 0:00:03]} (43. Qa3 $142) 43... Kg6 {[%emt 0:00:02]} (43... a4 $19 {has better winning chances. Hoping for ...Qd6.} 44. Ke3 c5) 44. Ke1 $2 {[%emt 0:00:01]} (44. Ke3 $17) 44... Qe4+ $2 {[%emt 0:00:02]} ({Better is} 44... Qh1+ $19 45. Kd2 Qxh2+ 46. Kc1 Qh1+ 47. Kb2 Qe4) 45. Kd2 $15 {[%emt 0:00:02]} a4 {[%emt 0:00:01]} ({Black should play} 45... Qg2+ $15 46. Kc1 Qd5) 46. Kc1 $1 $11 {[%emt 0:00:02]} Kf7 {[%emt 0:00:03]} 47. Kb2 {[%emt 0:00:01]} g6 {[%emt 0:00:03]} 48. Qc5 {[%emt 0:00:03]} Ke6 {[%emt 0:00:02]} 49. Ka3 {[%emt 0:00:02]} h5 {[%emt 0:00:03]} 50. Qc3 {[%emt 0:00:02]} Kf5 {[%emt 0:00:01] ...Kg4 is the strong threat.} 51. Qc5+ $2 {[%emt 0:00:02][%mdl 8192] [#]} (51. h3 $11) 51... Kg4 $1 $19 {[%emt 0:00:02]} 52. Qf2 {[%emt 0:00:02]} Kh3 {[%emt 0:00:02]} (52... Qf3+ $142 53. Qxf3+ Kxf3 54. Kxa4 Kg2 55. h4 Kxg3 56. Kb4 Kxh4 57. Kc5 Kg4 58. Kd6 h4 59. Kxc6 h3 60. Kd6 Kf4 61. c3 h2 62. Kd7 h1=Q 63. Kd6 Qa1 64. Kc6 Qxc3+ 65. Kd6 Qc4 66. Ke7 Kf5 67. Kd6 Kf6 68. Kd7 Qc5 69. Kd8 Ke6 70. Ke8 Qe7#) 53. Qd2 {[%emt 0:00:03]} Qc4 {[%emt 0:00:03]} 54. Qf2 {[%emt 0:00:02]} Qe4 {[%emt 0:00:02]} 55. Qd2 {[%emt 0:00:01]} c5 {[%emt 0:00:02] Black is clearly winning.} 56. Ka2 {[%emt 0:00:02]} Qc4+ {[%emt 0:00:02]} 57. Ka1 {[%emt 0:00:01]} Qb4 {[%emt 0:00:02]} 58. Qf2 {[%emt 0:00:01]} a3 {[%emt 0:00:02] Weighted Error Value: White=0.62/Black=0.56} 0-1